Cogmind - Beta 16 @@@ ROGUE MODE // 2026.01.25 @ 17:21:38 Player: Kimbo Result: Destroyed by G-47 Trooper with Particle Gun Performance ------------- Evolutions (2) 1000 Regions Visited (5) 1000 Robots Destroyed (28) 140 Value Destroyed (657) 657 Prototype IDs (1) 20 Alien Tech Used (0) 0 Bonus (21) 21 TOTAL SCORE: 2838 Bonus ------- Follower Combat Kills 21 Cogmind --------- Core Integrity 0/550 Matter 295/300 Energy 100/100 System Corruption 0% Temperature Cool (9) Movement Core (350) Ox6 Location -8/Materials Parts ------- > --- POWER (1) -------- (None) > --- PROPULSION (3) --- (None) > --- UTILITY (5) ------ Large Storage Unit > --- WEAPON (2) ------- (None) > --- INVENTORY (15) --- Weight Redist. System Peak State ------------ > --- POWER ------------ (None) > --- PROPULSION ------- (None) > --- UTILITY ---------- Scrap Suit Large Storage Unit Experimental Sensor Array ECM Suite > --- WEAPON ----------- Particle Cannon Mining Laser > --- INVENTORY -------- Weight Redist. System [Rating: 22] Favorites ----------- Power Ion Engine Engine Ion Engine Power Core Light Nuclear Core Propulsion Light Treads Treads Light Treads Utility Improved Terrain Scanner Device Improved Terrain Scanner Storage Small Storage Unit Protection Light Armor Plating Weapon Assault Rifle Energy Gun Particle Gun Energy Cannon Particle Cannon Ballistic Gun Assault Rifle Launcher Rocket Launcher Special Weapon Mining Laser Build | -11 -10 -10 -10 -9 -8 ------- Run | Yrd Mat Min Exi Min Mat Slots Evolved 4 | . . . . . 4 Power . | . . . . . . Propulsion 1 | . . . . . 1 Utility 3 | . . . . . 3 Weapon . | . . . . . . Parts Attached 22 | 7 2 2 . 5 6 Power 3 | 1 1 . . 1 . Engine 2 | 1 1 . . . . Core 1 | . . . . 1 . Reactor . | . . . . . . Propulsion 3 | 2 . . . 1 . Treads 3 | 2 . . . 1 . Leg . | . . . . . . Wheel . | . . . . . . Hover . | . . . . . . Flight . | . . . . . . Utility 9 | 2 . 1 . 1 5 Device 6 | 1 . . . 1 4 Storage 2 | 1 . 1 . . . Processor . | . . . . . . Hackware . | . . . . . . Protection 1 | . . . . . 1 Artifact . | . . . . . . Weapon 7 | 2 1 1 . 2 1 Energy Gun 2 | . 1 . . 1 . Energy Cannon 1 | . . . . 1 . Ballistic Gun 2 | 2 . . . . . Ballistic Cannon . | . . . . . . Launcher 1 | . . 1 . . . Special Weapon 1 | . . . . . 1 Impact Weapon . | . . . . . . Slashing Weapon . | . . . . . . Piercing Weapon . | . . . . . . Special Melee Weapon . | . . . . . . Unidentified Prototypes 1 | . . . . . 1 Parts Lost 18 | . . . . 5 13 Power 2 | . . . . 1 1 Propulsion 3 | . . . . 1 2 Utility 7 | . . . . 1 6 Weapon 6 | . . . . 2 4 Highest Loss Streak 13 | . . . . 3 13 To Critical Strikes . | . . . . . . Average Backups 7 | 2 6 7 8 10 3 Power 1 | . 1 2 2 . . Propulsion 1 | 1 2 1 1 1 . Utility 3 | . 1 2 4 5 2 Weapon 1 | . . . 1 2 1 Tool/Special . | . . . . . . Unused Backups 4 | . . 1 . 2 1 Power 1 | . . . . 1 . Propulsion 2 | . . 1 . 1 . Utility 1 | . . . . . 1 Weapon . | . . . . . . Tool/Special . | . . . . . . Average Slot Usage (%) 95 | . 98 100 100 95 68 Engine 12 | . 14 14 14 12 5 Treads 25 | . 26 28 28 25 10 Device 14 | . 14 14 14 13 28 Storage 13 | . 14 14 14 14 9 Energy Gun 1 | . . . . 2 5 Energy Cannon 2 | . . . . 5 7 Ballistic Gun 16 | . 26 18 28 10 . Launcher 6 | . . 9 . 7 . Peak Build Rating 22 | 9 9 10 9 14 22 Average Rating 10 | 7 8 9 9 11 18 On Entrance 7 | . 9 9 9 9 11 Avg Prop Armor Cover (%) . | . . . . . . Naked Turns . | . . . . . . Heaviest Build 35 | 13 15 32 30 32 35 Greatest Support 40 | 40 40 40 40 40 40 Greatest Overweight (x) 10 | 1 4 . . 1 10 Average Overweight (x) . | . . . . . . Largest Inventory Capacity 15 | 8 8 15 15 15 15 Average Capacity 10 | 7 8 9 15 15 15 Most Carried 14 | 5 7 8 8 14 7 Average Carried 7 | 2 6 7 8 10 3 Final Capacity 15 | 8 8 15 15 15 15 Final Carried 8 | 5 6 8 8 8 1 Scrap Suit Usage (%) 1 | . . . . . 2 Class Distribution -------------------- 100% | Mutant Dominant Class ---------------- Mutant | -10/Materials Mutant | -10/Mines Mutant | -10/Exiles Mutant | -9/Mines Mutant | -8/Materials Resources | -11 -10 -10 -10 -9 -8 ----------- Run | Yrd Mat Min Exi Min Mat Matter Collected 910 | 342 88 275 . 165 40 Remotely 134 | . . . . 94 40 Salvage Created 737 | 172 47 192 . 228 98 Parts 39 | 9 5 9 . 15 1 Haulers Intercepted . | . . . . . . Recyclers Shooed 3 | 2 . 1 . . . Parts Field Recycled . | . . . . . . Retrieved Matter . | . . . . . . Parts Self-Destructed . | . . . . . . Prevented . | . . . . . . Parts Restored . | . . . . . . Kills | -11 -10 -10 -10 -9 -8 ------- Run | Yrd Mat Min Exi Min Mat Combat Hostiles Destroyed 17 | . 3 4 . 8 2 Guns 5 | . 3 . . 2 . Cannons 1 | . . . . . 1 AOE 10 | . . 4 . 6 . Classes Destroyed 5 | 3 1 1 . . . Worker 3 | 2 . 1 . . . Tunneler 6 | 2 . 3 . 1 . Recycler 2 | 1 . 1 . . . Swarmer 3 | . 3 . . . . Grunt 14 | . . 4 . 8 2 Best Kill Streak 5 | 2 2 5 . 4 2 Combat Bots Only 3 | . 2 2 . 3 2 Max Kills in Single Turn 3 | 1 1 2 . 3 1 Gunslinging . | . . . . . . Exploded 2 | . . 1 . 2 . Melee . | . . . . . . Uniques/NPCs Destroyed . | . . . . . . Combat | -11 -10 -10 -10 -9 -8 -------- Run | Yrd Mat Min Exi Min Mat Hostile Shots Fired 204 | . 35 18 . 27 124 Missed 54 | . 9 6 . 10 29 Hits 150 | . 26 12 . 17 95 Projectile 150 | . 26 12 . 17 95 Critical Strikes 6 | . . . . 1 5 Damage Taken 2232 | . 204 202 . 357 1469 Core 629 | . 34 21 . 18 556 Absorbed by Shields . | . . . . . . Core Remaining (%) 85 | 100 . . . 70 . Volleys Fired 67 | 19 15 13 . 12 8 Largest 2 | 2 2 2 . 2 2 Hottest 133 | 40 60 53 . 133 133 Shots Fired 109 | 24 29 26 . 17 13 Gun 80 | 24 29 18 . 4 5 Cannon 11 | . . . . 3 8 Launcher 18 | . . 8 . 10 . Special . | . . . . . . Kinetic 72 | 24 27 18 . 3 . Thermal 19 | . 2 . . 4 13 Explosive 18 | . . 8 . 10 . Electromagnetic . | . . . . . . Robot Hit Streak 18 | 16 18 7 . 3 11 Robot Miss Streak 5 | 1 5 3 . 2 2 Penetration Max . | . . . . . . Secondary Targets 1 | . 1 . . . . Max Gunslinging Chain 1 | . 1 . . . . Shots Hit Robots 66 | 20 12 16 . 7 11 Core Hits 41 | 6 3 13 . 17 2 Critical Kills 1 | . . . . . 1 Critical Parts Destroyed 1 | 1 . . . . . Critical Strikes 2 | 1 . . . . 1 Meltdown 1 | . . . . . 1 Destroy 1 | 1 . . . . . Melee Attacks . | . . . . . . Impact . | . . . . . . Slashing . | . . . . . . Piercing . | . . . . . . Sneak Attacks . | . . . . . . Combat Hostiles . | . . . . . . Follow-up Attacks . | . . . . . . Damage Inflicted 1847 | 256 150 641 . 596 204 Guns 615 | 256 150 123 . 26 60 Cannons 165 | . . . . 21 144 Explosions 1065 | . . 518 . 547 . Melee . | . . . . . . Ramming 2 | . . . . 2 . Kinetic 532 | 256 140 123 . 13 . Thermal 248 | . 10 . . 34 204 Explosive 1065 | . . 518 . 547 . Electromagnetic . | . . . . . . Impact . | . . . . . . Slashing . | . . . . . . Piercing . | . . . . . . Highest Corruption . | . . . . . . Average Corruption . | . . . . . . Corruption Purged . | . . . . . . Corruption Blocked . | . . . . . . Overload Shots . | . . . . . . Overflow Damage 33 | . . 11 . 22 . Projectiles . | . . . . . . Explosions 33 | . . 11 . 22 . Melee . | . . . . . . Knockbacks . | . . . . . . Impact . | . . . . . . Kinetic . | . . . . . . Secondary . | . . . . . . Self-Inflicted Damage 186 | . . 57 . 129 . Shots 8 | . . 3 . 5 . Rammed 1 | . . . . 1 . Targets Rammed 1 | . . . . 1 . Kicked . | . . . . . . Crushed . | . . . . . . Highest Temperature 405 | . . 6 . 137 405 Average Temperature 127 | . . 4 . 43 214 Received Heat Transfer 999 | . . 69 . 156 774 Effects 4 | . . . . . 4 Interference 2 | . . . . . 2 Short Circuit 1 | . . . . . 1 Damage (minor) 1 | . . . . . 1 Siege Activations . | . . . . . . Martial Activations . | . . . . . . Shielding Activations . | . . . . . . Robots Disrupted . | . . . . . . Combat Hostiles . | . . . . . . Robots Corrupted . | . . . . . . Combat Hostiles . | . . . . . . Parts Fried . | . . . . . . Impact Corruptions . | . . . . . . Robots Melted 1 | . . . . . 1 Combat Hostiles 1 | . . . . . 1 Parts Melted 6 | . . . . . 6 Heat Transferred 506 | . 25 . . 74 407 Parts Sabotaged . | . . . . . . Parts Stolen . | . . . . . . Parts Stripped . | . . . . . . Power Chain Reactions . | . . . . . . Alert | -11 -10 -10 -10 -9 -8 ------- Run | Yrd Mat Min Exi Min Mat Maximum Alert Level . | . . . . . . Low Security (%) 100 | 100 100 100 . 100 100 Level 1 . | . . . . . . Level 2 . | . . . . . . Level 3 . | . . . . . . Level 4 . | . . . . . . Level 5 . | . . . . . . High Security . | . . . . . . Max Security . | . . . . . . Peak Influence 148 | 5 55 108 . 148 55 Initial 35 | . . 13 . . 35 Average 36 | . 9 39 . 70 20 Influence Increases 770 | 25 87 296 . 297 65 Destroy 0b10 Robot/C 400 | . 60 140 . 160 40 Destroy 0b10 Robot/NC 55 | 25 . 25 . 5 . Destroy Leader 80 | . 10 30 . 30 10 Allied During Kill 7 | . . 7 . . . Successful Hack 2 | . 2 . . . . Destroy Structure 106 | . . 49 . 57 . Lose Combat Pursuer 120 | . 15 45 . 45 15 Influence Decreases 770 | 25 52 286 45 206 156 Entered New Map 123 | . . 22 45 . 56 Time Decay 527 | 25 52 244 . 156 50 Lost Part 100 | . . . . 50 50 Lost Ally 20 | . . 20 . . . Squads Dispatched 1 | . . . . . 1 Investigation 1 | . . . . . 1 Extermination . | . . . . . . Reinforcement . | . . . . . . Assault . | . . . . . . Garrison . | . . . . . . Intercept . | . . . . . . Searches Triggered . | . . . . . . Construction Impeded . | . . . . . . Haulers Reinforced . | . . . . . . Active Scanning Responses . | . . . . . . Cargo Convoy Interrupts . | . . . . . . Stealth | -11 -10 -10 -10 -9 -8 --------- Run | Yrd Mat Min Exi Min Mat Distress Signals . | . . . . . . Communications Jammed . | . . . . . . Distress Signals . | . . . . . . Times Spotted 35 | . 4 9 . 12 10 Peak Tracking Total 9 | . 3 3 . 3 9 Tactical Retreats 5 | . 1 2 . 1 1 Traps | -11 -10 -10 -10 -9 -8 ------- Run | Yrd Mat Min Exi Min Mat Traps Triggered 5 | . 4 . . . 1 Indirectly . | . . . . . . Trap Hack Attempts . | . . . . . . Triggered . | . . . . . . Disarmed . | . . . . . . Reprogrammed . | . . . . . . Reused . | . . . . . . Traps Extracted . | . . . . . . Installed . | . . . . . . Triggered . | . . . . . . Machines | -11 -10 -10 -10 -9 -8 ---------- Run | Yrd Mat Min Exi Min Mat Machines Disabled . | . . . . . . Max in Single Turn . | . . . . . . Machines Repaired . | . . . . . . Machines Dismantled . | . . . . . . Machines Sabotaged . | . . . . . . Overloaded Fab Kills . | . . . . . . Hacking | -11 -10 -10 -10 -9 -8 --------- Run | Yrd Mat Min Exi Min Mat Machines Accessed 4 | . 2 . . 1 1 Terminals 3 | . 1 . . 1 1 Fabricators . | . . . . . . Repair Stations . | . . . . . . Recycling Units 1 | . 1 . . . . Scanalyzers . | . . . . . . Garrison Access . | . . . . . . Total Hacks 6 | . 3 . . 2 1 Successful 3 | . 2 . . 1 . Failed 3 | . 1 . . 1 1 Catastrophic . | . . . . . . Database Lockouts . | . . . . . . Manual . | . . . . . . Terminals 5 | . 2 . . 2 1 Fabricators . | . . . . . . Repair Stations . | . . . . . . Recycling Units 1 | . 1 . . . . Scanalyzers . | . . . . . . Garrison Access . | . . . . . . Terminal Hacks 2 | . 1 . . 1 . Record 1 | . 1 . . . . Zone Layout 1 | . . . . 1 . Fabricator Hacks . | . . . . . . Repair Station Hacks . | . . . . . . Recycling Unit Hacks 1 | . 1 . . . . Report Inventory 1 | . 1 . . . . Scanalyzer . | . . . . . . Garrison Access Hacks . | . . . . . . Unauthorized Hacks . | . . . . . . Terminals . | . . . . . . Fabricators . | . . . . . . Repair Stations . | . . . . . . Recycling Units . | . . . . . . Scanalyzers . | . . . . . . Garrison Access . | . . . . . . Data Cores Recovered . | . . . . . . Used . | . . . . . . Hacking Detections 3 | . 1 . . 1 1 Full Trace Events . | . . . . . . Feedback Events . | . . . . . . Feedback Blocked . | . . . . . . Robot Schematics Acquired . | . . . . . . Robots Built . | . . . . . . Authchips . | . . . . . . Time . | . . . . . . Total Robot Build Rating . | . . . . . . Part Schematics Acquired . | . . . . . . Parts Built . | . . . . . . Authchips . | . . . . . . Time . | . . . . . . Total Part Build Rating . | . . . . . . Part Studies Acquired . | . . . . . . Parts Repaired . | . . . . . . Time . | . . . . . . Parts Recycled . | . . . . . . Recycled Matter . | . . . . . . Retrieved Matter . | . . . . . . Retrieved Components . | . . . . . . Parts Scanalyzed . | . . . . . . Part Schematics Acquired . | . . . . . . Parts Damaged . | . . . . . . Bothacking | -11 -10 -10 -10 -9 -8 ------------ Run | Yrd Mat Min Exi Min Mat Used RIF Installer . | . . . . . . Robots Hacked . | . . . . . . Non-combat . | . . . . . . Combat . | . . . . . . Robot Hacks Applied . | . . . . . . Relay Couplers Released . | . . . . . . Fabnet Peak Effective % . | . . . . . . Robots Rewired . | . . . . . . Allies Hacked . | . . . . . . Hacks Repelled . | . . . . . . Allies | -11 -10 -10 -10 -9 -8 -------- Run | Yrd Mat Min Exi Min Mat Total Allies 3 | . . 3 . . . Largest Group 3 | . . 3 1 1 . Highest-Rated Group 40 | . . 40 16 16 . Highest-Rated Ally 16 | . . 16 16 16 . Total Orders . | . . . . . . Ally Attacks 23 | . . 20 . 3 . Total Damage 157 | . . 112 . 45 . Kills 3 | . . 3 . . . Allies Corrupted . | . . . . . . Allies Melted . | . . . . . . Intel | -11 -10 -10 -10 -9 -8 ------- Run | Yrd Mat Min Exi Min Mat Active Infowar (turns) 1703 | 173 362 750 48 288 82 Sensors 82 | . . . . . 82 Terrain 1621 | 173 362 750 48 288 . Seismic 77 | . . . . . 77 ECM 14 | . . . . . 14 Robot Analysis Total . | . . . . . . Derelict Logs Recovered 2 | . . 1 . 1 . Drone Launches . | . . . . . . Drone Recoveries . | . . . . . . Exploration | -11 -10 -10 -10 -9 -8 ------------- Run | Yrd Mat Min Exi Min Mat Turns Passed 2058 | 228 362 750 48 534 136 Spaces Moved 1066 | 111 190 414 31 279 41 Core 12 | 8 1 . . . 3 Treads 1054 | 103 189 414 31 279 38 Legs . | . . . . . . Wheels . | . . . . . . Hover . | . . . . . . Flight . | . . . . . . Fastest Speed 50 | 50 160 160 160 160 160 Average Speed 163 | 152 160 160 160 170 187 Slowest Speed 550 | 160 250 160 160 240 550 Overloaded Moves . | . . . . . . Propulsion Burnouts . | . . . . . . Robots Hopped . | . . . . . . Potential Cave-ins . | . . . . . . Cave-ins Triggered . | . . . . . . Exploration Rate (%) 30 | 6 31 80 8 47 8 Regions Visited 5 Branch Regions 3 Pre-discovered Areas 1 | . . 1 . . . Known Exits Taken . | . . . . . . Unknown Exits Taken 5 | 1 1 1 1 1 . Scrap Searched 5 | . . 1 . 4 . Spaces Dug . | . . . . . . Terrain Destroyed 165 | . . 76 . 89 . Melee . | . . . . . . Projectile . | . . . . . . AOE 165 | . . 76 . 89 . Terrain Rammed . | . . . . . . Walls Destroyed . | . . . . . . Machines Disabled . | . . . . . . Actions | -11 -10 -10 -10 -9 -8 --------- Run | Yrd Mat Min Exi Min Mat Total 1272 | 142 215 475 30 322 88 Wait 83 | 1 . 39 . 12 31 Move 1061 | 110 189 413 30 278 41 Hop . | . . . . . . Pick Up 17 | 5 1 3 . 7 1 Fast Attach 15 | 7 7 . . 1 . Attach 14 | . 1 1 . 5 7 Detach 1 | . . 1 . . . Swap 7 | . 1 4 . 2 . Drop 6 | . 1 1 . 4 . Fire 67 | 19 15 13 . 12 8 Melee . | . . . . . . Ram . | . . . . . . Kick . | . . . . . . Crush 1 | . . . . 1 . Escape Stasis . | . . . . . . Rewire . | . . . . . . Trap . | . . . . . . Miscellaneous . | . . . . . . Route ------- -11/Scrapyard -10/Materials (discovered 2 exits: [*Mat] / [*Min]) -10/Mines (discovered 3 exits: [*Mat] / [*Exi] / [*Sub]) -10/Exiles -9/Mines -8/Materials History --------- Turn | Location | Event 7 | -11/Scrapyard | Discovered new exit (range 16) 229 | -11/Scrapyard | Entered Materials 316 | -10/Materials | Build established: Mutant 363 | -10/Materials | Discovered new exit (range 14) 487 | -10/Materials | Discovered new exit (range 13) 591 | -10/Materials | Entered Mines 598 | -10/Mines | Received a Rocket Launcher from a helpful Derelict 684 | -10/Mines | Discovered new exit (range 13) 1013 | -10/Mines | Discovered new exit (range 13) 1191 | -10/Mines | Assisted by bots powering up and referring to "LRC-V3" 1333 | -10/Mines | Deemed a non-threat by the Exiles lab entrance 1335 | -10/Mines | Discovered new exit (range 5) 1341 | -10/Mines | Entered Exiles 1341 | -10/Exiles | Accompanied by 1 ally 1367 | -10/Exiles | Discovered new exit (range 15) 1389 | -10/Exiles | Entered Mines 1389 | -9/Mines | Accompanied by 1 ally 1438 | -9/Mines | Learned 8 Materials zone layouts 1463 | -9/Mines | Found a damaged Exp. Sensor Array with a note attached 1467 | -9/Mines | Found Prototype Device 1488 | -9/Mines | Found a Scrap Suit stashed away for nefarious purposes 1495 | -9/Mines | Found Scrap Suit 1710 | -9/Mines | Lost 3 parts (1p1u1w) 1893 | -9/Mines | Discovered new exit (range 15) 1923 | -9/Mines | Entered Materials 1923 | -8/Materials | Evolved 4 slots: Propulsion x1, Utility x3 1923 | -8/Materials | Identified Exp. Sensor Array 2051 | -8/Materials | Core integrity fell below 50% 2057 | -8/Materials | Core integrity fell below 20% 2059 | -8/Materials | Destroyed by G-47 Trooper with Particle Gun Last Messages --------------- 02011_ Particle Cannon broken. 02011_ Overheating: Short circuit. 02012_ U-05 Engineer lays Concrete. 02013_ Lgt. Armor Plating destroyed. 02014_ U-05 Engineer lays Concrete. 02015_ Overheating: Broken Particle Cannon damaged (-8). 02016_ Overheating: System interference. 02016_ Scrap Suit temporarily disabled. 02017_ U-05 Engineer builds a Door. 02019_ Critical hit (Burn: +37). 02022_ Broken Particle Cannon destroyed. 02030_ ECM Suite destroyed. 02031_ Mining Laser destroyed. 02032_ Critical hit (Burn: +37). 02038_ G-47 Trooper suffers critical hit (Burn). 02039_ Critical hit (Burn: +37). 02043_ R-06 Scavenger collects Carbon-fiber Leg. 02048_ Scrap Suit destroyed. 02054_ Exp. Sensor Array destroyed. Map ----- +----------------------------------------------------+ | # # #???????????########## ## ??????????? | | # ########????????????????????# #####??????????? | | # #???????????????????????????# ??????????? | | # ##??????????????????????????# ??????????? | | #??????????????????????????# ??????????? | | ??????????????????????????????# ##### ###/# | | ??????????????????????????????# #???# ## | | ??????????????????????????????# #???# ## "" | | ???????????????????????######## #???## ### "" | | ???????????????????????# #???######### "" | | ??????????????########## #???????????# | | ?????????????? #???????????# | | ??????????????################# ################ | | ??????????????????????????????# # #??# | | ??????????????????????????????# # """ #??# | | ???????????????????????######## + """ #??# | | ???????????????????????# # """ #??# | | ??????????????########## # #??# | | ?????????????? "g r # #??# | | ?????????????? ### YgY######### #??# | | ???????????? ? #?#g% #????###### ############ | | ?????????? #?# #?#### ###### ## | | ???????? #?# #?# # # | | ??????? #?# #?# """ "T" # + | | ??????? #?# #?# """ # # | | ?????? #?# g @#?# """ #####+#+### | | ?????? ###+##/### """ + ### | | ????? # # # | | ????? # """" # # ####### | | ????" # """" # # ####### | | # """" #?????????? # """ # | | # #?????????? # "R" ## | | ! # " #?????????? # " " ## | | ]] + T #?????????? + ## | | ]] # " #?????????? # ## | | ##########+### # #?????????? ######## | | ???# # ###########?????????? | | ???# # # #?????????? | | ???# # # % #??????????##+## #### | | ???# # + #?????????? # #??# | | ???# # # [[[ #?????????? # #### | | ???# # # [[ #?????????? # # | | ???# # #? [[ #??????????""" # # | | ???# # #? !#??????????""" # #### | | ???# ######### #?? #??????????""" # # | | ???###???????# #??########??????????""" # + "" | | ?????????????# #????????????????????""" + # "" | | ?????????????# #????????????????????##### # "" | | ?????????????# #????????????????????????#### | | ?????????????# #???????????????????????????# | +----------------------------------------------------+ Best States ------------- Heat Dissipation 31 Energy Generation 14 Energy Capacity 250 Matter Stores 300 Matter Capacity 300 Sight Range 16 Robot Scan Range 20 Terrain Scan Range 16 Terrain Scan Density 10 ECM Strength 1 Armor Coverage 150 Evasion (%) 40 Recoil Reduction 2 Item Schematics ----------------- None Robot Schematics ------------------ None Fabricated ------------ Nothing Repaired ---------- Nothing Studied --------- None Alien Tech Used ----------------- None Achievements -------------- It's Just You Challenges ------------ None Game ------ Seed ArmorPiercingDetector Manual? 0 Play Time 00:18:05 Cumulative 5.3 hours Start 2026.01.25 @ 17:03:42 End 2026.01.25 @ 17:21:38 Sessions 1 Manual Loads 0 Difficulty Rogue Special Mode None Game No. 10 Rogue 9 Adventurer 1 Explorer 0 Win Type - Total 0 Types 0/0/0/0/0/0/0/0/0/0 Lore% 6 Gallery% 9 Achievement% 8 Wizard Run 0 Options --------- Layout 1 ASCII 0 Keyboard 0 Movement Numpad Keybinds 0 Fullscreen 1 Font 32/SmallcapsGlow Map View 50x35 Zoom Use 0% Tactical HUD 1 Map Filters NONE Filters NONE Steam 1 RUN: bd717515-d24f-49db-933d-7f452d663566